[Event "Titled Tuesday Blitz February 07 Late 2023"]
[White "Trost, Edvin"]
[Black "Figorito, Nick"]
[WhiteFideId "1729519"]
[BlackFideId "30923689"]
[WhiteElo "2399"]
[BlackElo "2036"]
[Result "0-1"]
[Round "01"]
[TimeControl "180+2"]
[Date "2023.02.07"]
[WhiteClock "0:00:10"]
[BlackClock "0:00:18"]

1. e4 {[%clk 0:02:58]}  e6 {[%clk 0:02:59]} 2. Nf3 {[%clk 0:02:48]}  d5 {[%clk 0:02:58]} 3. d3 {[%clk 0:02:46]}  Nc6 {[%clk 0:02:57]} 4. Nbd2 {[%clk 0:02:46]}  Nf6 {[%clk 0:02:56]} 5. g3 {[%clk 0:02:47]}  dxe4 {[%clk 0:02:55]} 6. dxe4 {[%clk 0:02:47]}  e5 {[%clk 0:02:55]} 7. Bg2 {[%clk 0:02:47]}  Bc5 {[%clk 0:02:56]} 8. O-O {[%clk 0:02:47]}  O-O {[%clk 0:02:56]} 9. Qe2 {[%clk 0:02:38]}  Qe7 {[%clk 0:02:56]} 10. Nc4 {[%clk 0:02:35]}  Bg4 {[%clk 0:02:41]} 11. c3 {[%clk 0:02:35]}  a5 {[%clk 0:02:42]} 12. h3 {[%clk 0:02:34]}  Bh5 {[%clk 0:02:41]} 13. Kh2 {[%clk 0:02:33]}  Bg6 {[%clk 0:02:40]} 14. Nh4 {[%clk 0:02:32]}  Bh5 {[%clk 0:02:31]} 15. Bf3 {[%clk 0:02:26]}  Bxf3 {[%clk 0:02:28]} 16. Qxf3 {[%clk 0:02:27]}  Qe6 {[%clk 0:02:13]} 17. Nf5 {[%clk 0:02:25]}  Qxc4 {[%clk 0:02:12]} 18. Bg5 {[%clk 0:01:33]}  Qe6 {[%clk 0:02:05]} 19. a3 {[%clk 0:01:22]}  a4 {[%clk 0:02:01]} 20. Rad1 {[%clk 0:01:22]}  Ne7 {[%clk 0:01:59]} 21. Nh6+ {[%clk 0:01:19]}  Kh8 {[%clk 0:01:51]} 22. Rd2 {[%clk 0:01:19]}  Ng6 {[%clk 0:01:38]} 23. Rfd1 {[%clk 0:01:19]}  Be7 {[%clk 0:01:36]} 24. Nf5 {[%clk 0:01:17]}  Bc5 {[%clk 0:01:28]} 25. Nh6 {[%clk 0:01:13]}  Be7 {[%clk 0:01:22]} 26. Nf5 {[%clk 0:01:13]}  Rfd8 {[%clk 0:01:19]} 27. h4 {[%clk 0:01:07]}  Rxd2 {[%clk 0:01:12]} 28. Rxd2 {[%clk 0:01:07]}  Rd8 {[%clk 0:01:09]} 29. Rxd8+ {[%clk 0:01:01]}  Bxd8 {[%clk 0:01:10]} 30. h5 {[%clk 0:01:01]}  Ne7 {[%clk 0:01:05]} 31. Qd1 {[%clk 0:00:46]}  Nc6 {[%clk 0:00:47]} 32. h6 {[%clk 0:00:43]}  g6 {[%clk 0:00:44]} 33. Ng7 {[%clk 0:00:40]}  Qd6 {[%clk 0:00:36]} 34. Qf3 {[%clk 0:00:40]}  Kg8 {[%clk 0:00:27]} 35. Kg2 {[%clk 0:00:40]}  Na5 {[%clk 0:00:18]} 36. Qe2 {[%clk 0:00:35]}  c6 {[%clk 0:00:16]} 37. Qc2 {[%clk 0:00:33]}  b5 {[%clk 0:00:16]} 38. f4 {[%clk 0:00:31]}  Nc4 {[%clk 0:00:15]} 39. Kh3 {[%clk 0:00:29]}  Qd7+ {[%clk 0:00:13]} 40. f5 {[%clk 0:00:28]}  gxf5 {[%clk 0:00:08]} 41. Nxf5 {[%clk 0:00:29]}  Nd6 {[%clk 0:00:04]} 42. g4 {[%clk 0:00:14]}  Ndxe4 {[%clk 0:00:04]} 43. Be3 {[%clk 0:00:10]}  Qe6 {[%clk 0:00:04]} 44. Qe2 {[%clk 0:00:10]}  Nd5 {[%clk 0:00:03]} 45. Bc1 {[%clk 0:00:09]}  Nf4+ {[%clk 0:00:03]} 46. Bxf4 {[%clk 0:00:09]}  exf4 {[%clk 0:00:04]} 47. Kh2 {[%clk 0:00:07]}  Ng5 {[%clk 0:00:04]} 48. Qd3 {[%clk 0:00:07]}  Be7 {[%clk 0:00:03]} 49. Kg2 {[%clk 0:00:04]}  Bf8 {[%clk 0:00:03]} 50. Qd4 {[%clk 0:00:04]}  Ne4 {[%clk 0:00:04]} 51. Qd8 {[%clk 0:00:01]}  Nf6 {[%clk 0:00:05]} 52. Qd2 {[%clk 0:00:02]}  Qe4+ {[%clk 0:00:04]} 53. Kh3 {[%clk 0:00:02]}  Qe6 {[%clk 0:00:05]} 54. Kg2 {[%clk 0:00:02]}  f3+ {[%clk 0:00:05]} 55. Kxf3 {[%clk 0:00:02]}  Qd5+ {[%clk 0:00:06]} 56. Qxd5 {[%clk 0:00:02]}  Nxd5 {[%clk 0:00:07]} 57. Ke4 {[%clk 0:00:02]}  Nf6+ {[%clk 0:00:08]} 58. Kf4 {[%clk 0:00:03]}  Nd5+ {[%clk 0:00:08]} 59. Ke5 {[%clk 0:00:03]}  Nb6 {[%clk 0:00:09]} 60. Nd4 {[%clk 0:00:03]}  Nc4+ {[%clk 0:00:09]} 61. Ke4 {[%clk 0:00:03]}  Nxb2 {[%clk 0:00:10]} 62. Nxc6 {[%clk 0:00:03]}  Nc4 {[%clk 0:00:10]} 63. Kd3 {[%clk 0:00:04]}  Nxa3 {[%clk 0:00:11]} 64. Na7 {[%clk 0:00:04]}  Bc5 {[%clk 0:00:11]} 65. Nc6 {[%clk 0:00:03]}  Nc4 {[%clk 0:00:11]} 66. Na5 {[%clk 0:00:03]}  a3 {[%clk 0:00:12]} 67. Nxc4 {[%clk 0:00:03]}  bxc4+ {[%clk 0:00:12]} 68. Kxc4 {[%clk 0:00:03]}  a2 {[%clk 0:00:13]} 69. Kxc5 {[%clk 0:00:04]}  a1=Q {[%clk 0:00:14]} 70. c4 {[%clk 0:00:05]}  Qc3 {[%clk 0:00:14]} 71. Kb5 {[%clk 0:00:05]}  f5 {[%clk 0:00:15]} 72. c5 {[%clk 0:00:06]}  fxg4 {[%clk 0:00:15]} 73. c6 {[%clk 0:00:07]}  g3 {[%clk 0:00:16]} 74. Kb6 {[%clk 0:00:07]}  g2 {[%clk 0:00:17]} 75. Kb7 {[%clk 0:00:08]}  g1=Q {[%clk 0:00:17]} 76. c7 {[%clk 0:00:09]}  Qgc5 {[%clk 0:00:17]} 77. Kb8 {[%clk 0:00:09]}  Qxc7+ {[%clk 0:00:18]} 78. Ka8 {[%clk 0:00:10]}  Q3a5# {[%clk 0:00:18]} 0-1


[Site "https://www.chess.com"]

[Event "Titled Tuesday Blitz February 07 Late 2023"]
[White "Dzida, Kamil"]
[Black "Salimova, Nurgyul"]
[WhiteFideId "21828652"]
[BlackFideId "2915138"]
[WhiteElo "2352"]
[BlackElo "2391"]
[Result "1-0"]
[Round "01"]
[TimeControl "180+2"]
[Date "2023.02.07"]
[WhiteClock "0:00:06"]
[BlackClock "0:00:03"]

1. e4 {[%clk 0:02:57]}  c6 {[%clk 0:03:00]} 2. d4 {[%clk 0:02:57]}  d5 {[%clk 0:03:01]} 3. Nc3 {[%clk 0:02:55]}  dxe4 {[%clk 0:03:01]} 4. Nxe4 {[%clk 0:02:56]}  Nf6 {[%clk 0:03:02]} 5. Nxf6+ {[%clk 0:02:55]}  exf6 {[%clk 0:03:03]} 6. c3 {[%clk 0:02:55]}  Bd6 {[%clk 0:03:03]} 7. Bd3 {[%clk 0:02:56]}  O-O {[%clk 0:03:04]} 8. Qc2 {[%clk 0:02:56]}  Re8+ {[%clk 0:03:04]} 9. Ne2 {[%clk 0:02:56]}  h5 {[%clk 0:03:05]} 10. O-O {[%clk 0:02:56]}  h4 {[%clk 0:03:05]} 11. Nf4 {[%clk 0:02:56]}  Qc7 {[%clk 0:02:42]} 12. g3 {[%clk 0:02:56]}  Nd7 {[%clk 0:02:42]} 13. Qd1 {[%clk 0:02:54]}  Nf8 {[%clk 0:02:37]} 14. Qh5 {[%clk 0:02:41]}  hxg3 {[%clk 0:02:37]} 15. hxg3 {[%clk 0:02:34]}  Be6 {[%clk 0:02:24]} 16. Kg2 {[%clk 0:02:30]}  Bxf4 {[%clk 0:02:03]} 17. Bxf4 {[%clk 0:02:29]}  Qd7 {[%clk 0:02:03]} 18. Rh1 {[%clk 0:01:39]}  Qd5+ {[%clk 0:01:40]} 19. f3 {[%clk 0:01:30]}  Qxh5 {[%clk 0:01:36]} 20. Rxh5 {[%clk 0:01:31]}  Ng6 {[%clk 0:01:22]} 21. Bd6 {[%clk 0:01:23]}  Rad8 {[%clk 0:01:10]} 22. Ba3 {[%clk 0:01:21]}  f5 {[%clk 0:00:55]} 23. Re1 {[%clk 0:01:07]}  Bxa2 {[%clk 0:00:36]} 24. Rxe8+ {[%clk 0:01:06]}  Rxe8 {[%clk 0:00:37]} 25. Rxf5 {[%clk 0:01:07]}  Bd5 {[%clk 0:00:23]} 26. c4 {[%clk 0:01:01]}  Be6 {[%clk 0:00:23]} 27. Ra5 {[%clk 0:01:01]}  Rd8 {[%clk 0:00:21]} 28. Rxa7 {[%clk 0:00:19]}  Rxd4 {[%clk 0:00:18]} 29. Bxg6 {[%clk 0:00:15]}  fxg6 {[%clk 0:00:19]} 30. Rxb7 {[%clk 0:00:16]}  Bxc4 {[%clk 0:00:14]} 31. Bb4 {[%clk 0:00:13]}  Bf7 {[%clk 0:00:05]} 32. Bc3 {[%clk 0:00:12]}  Rd3 {[%clk 0:00:05]} 33. Rb8+ {[%clk 0:00:12]}  Kh7 {[%clk 0:00:05]} 34. Rb7 {[%clk 0:00:13]}  Kg8 {[%clk 0:00:04]} 35. Rc7 {[%clk 0:00:13]}  Bd5 {[%clk 0:00:03]} 36. Rxg7+ {[%clk 0:00:13]}  Kf8 {[%clk 0:00:03]} 37. Rxg6 {[%clk 0:00:12]}  Rxf3 {[%clk 0:00:03]} 38. Kh2 {[%clk 0:00:10]}  Rf2+ {[%clk 0:00:03]} 39. Kh3 {[%clk 0:00:11]}  Bf7 {[%clk 0:00:03]} 40. Rf6 {[%clk 0:00:11]}  Re2 {[%clk 0:00:02]} 41. g4 {[%clk 0:00:10]}  Kg8 {[%clk 0:00:03]} 42. Kg3 {[%clk 0:00:10]}  Re3+ {[%clk 0:00:03]} 43. Kf4 {[%clk 0:00:11]}  Re2 {[%clk 0:00:03]} 44. Rxc6 {[%clk 0:00:11]}  Bd5 {[%clk 0:00:03]} 45. Rc7 {[%clk 0:00:11]}  Re4+ {[%clk 0:00:03]} 46. Kf5 {[%clk 0:00:11]}  Re2 {[%clk 0:00:02]} 47. g5 {[%clk 0:00:11]}  Rf2+ {[%clk 0:00:03]} 48. Ke5 {[%clk 0:00:12]}  Bb3 {[%clk 0:00:03]} 49. Rb7 {[%clk 0:00:11]}  Re2+ {[%clk 0:00:03]} 50. Kd4 {[%clk 0:00:11]}  Bd1 {[%clk 0:00:03]} 51. b4 {[%clk 0:00:11]}  Rg2 {[%clk 0:00:04]} 52. Rb5 {[%clk 0:00:10]}  Rg4+ {[%clk 0:00:04]} 53. Kd3 {[%clk 0:00:09]}  Bb3 {[%clk 0:00:03]} 54. Re5 {[%clk 0:00:09]}  Bc4+ {[%clk 0:00:04]} 55. Kd2 {[%clk 0:00:08]}  Kf7 {[%clk 0:00:04]} 56. b5 {[%clk 0:00:08]}  Kg6 {[%clk 0:00:04]} 57. Rc5 {[%clk 0:00:09]}  Bf1 {[%clk 0:00:04]} 58. b6 {[%clk 0:00:08]}  Bg2 {[%clk 0:00:04]} 59. Bf6 {[%clk 0:00:06]}  Rd4+ {[%clk 0:00:04]} 60. Bxd4 {[%clk 0:00:05]}  Bb7 {[%clk 0:00:03]} 61. Rc7 {[%clk 0:00:06]}  Kh5 {[%clk 0:00:03]} 62. Rxb7 {[%clk 0:00:06]} 1-0


[Site "https://www.chess.com"]

[Event "Titled Tuesday Blitz February 07 Late 2023"]
[White "Semenenko, Dmytry"]
[Black "Sochacki, Christophe"]
[WhiteFideId "14118645"]
[BlackFideId "662569"]
[WhiteElo "2113"]
[BlackElo "2448"]
[Result "0-1"]
[Round "01"]
[TimeControl "180+2"]
[Date "2023.02.07"]
[WhiteClock "0:00:14"]
[BlackClock "0:00:41"]

1. Nf3 {[%clk 0:02:59]}  Nc6 {[%clk 0:02:59]} 2. d4 {[%clk 0:02:58]}  d6 {[%clk 0:02:59]} 3. c4 {[%clk 0:02:58]}  e5 {[%clk 0:02:59]} 4. d5 {[%clk 0:02:58]}  Nce7 {[%clk 0:02:59]} 5. Nc3 {[%clk 0:02:58]}  f5 {[%clk 0:02:54]} 6. e4 {[%clk 0:02:58]}  Nf6 {[%clk 0:02:53]} 7. Bd3 {[%clk 0:02:53]}  g6 {[%clk 0:02:52]} 8. Ng5 {[%clk 0:02:50]}  Bg7 {[%clk 0:02:51]} 9. O-O {[%clk 0:02:46]}  O-O {[%clk 0:02:49]} 10. exf5 {[%clk 0:02:42]}  Nxf5 {[%clk 0:02:43]} 11. Nce4 {[%clk 0:02:34]}  c6 {[%clk 0:02:24]} 12. dxc6 {[%clk 0:02:29]}  bxc6 {[%clk 0:02:24]} 13. Nxf6+ {[%clk 0:02:28]}  Bxf6 {[%clk 0:02:18]} 14. Ne4 {[%clk 0:02:28]}  Bg7 {[%clk 0:02:04]} 15. Bg5 {[%clk 0:02:27]}  Qb6 {[%clk 0:01:59]} 16. c5 {[%clk 0:02:16]}  dxc5 {[%clk 0:01:57]} 17. Bc4+ {[%clk 0:02:17]}  Kh8 {[%clk 0:01:57]} 18. Nd6 {[%clk 0:02:10]}  h6 {[%clk 0:01:50]} 19. Be3 {[%clk 0:01:58]}  Nd4 {[%clk 0:01:44]} 20. Qd2 {[%clk 0:01:49]}  Kh7 {[%clk 0:01:41]} 21. Ne4 {[%clk 0:01:31]}  Bf5 {[%clk 0:01:32]} 22. Ng3 {[%clk 0:01:29]}  Rad8 {[%clk 0:01:28]} 23. Qc3 {[%clk 0:01:25]}  e4 {[%clk 0:01:20]} 24. Qc1 {[%clk 0:01:15]}  h5 {[%clk 0:01:13]} 25. h4 {[%clk 0:01:10]}  Be5 {[%clk 0:01:03]} 26. Bg5 {[%clk 0:01:04]}  Rd5 {[%clk 0:00:59]} 27. Bxd5 {[%clk 0:01:01]}  cxd5 {[%clk 0:01:00]} 28. Qd2 {[%clk 0:00:52]}  Bg4 {[%clk 0:00:55]} 29. Rfe1 {[%clk 0:00:49]}  Qd6 {[%clk 0:00:51]} 30. Nf1 {[%clk 0:00:42]}  Qe6 {[%clk 0:00:48]} 31. Ne3 {[%clk 0:00:41]}  Bd6 {[%clk 0:00:44]} 32. Nxg4 {[%clk 0:00:30]}  Qxg4 {[%clk 0:00:44]} 33. Kh1 {[%clk 0:00:27]}  Nf3 {[%clk 0:00:41]} 34. Qxd5 {[%clk 0:00:15]}  Nxe1 {[%clk 0:00:41]} 35. Qxd6 {[%clk 0:00:14]}  Qxg2# {[%clk 0:00:41]} 0-1


[Site "https://www.chess.com"]

[Event "Titled Tuesday Blitz February 07 Late 2023"]
[White "Adewumi, Tanitoluwa"]
[Black "Rottenwohrer Suarez, Juan"]
[WhiteFideId "30966396"]
[BlackFideId "32068182"]
[WhiteElo "2283"]
[BlackElo "2265"]
[Result "1-0"]
[Round "01"]
[TimeControl "180+2"]
[Date "2023.02.07"]
[WhiteClock "0:00:37"]
[BlackClock "0:01:27"]

1. e4 {[%clk 0:02:54]}  c5 {[%clk 0:03:00]} 2. Nf3 {[%clk 0:02:54]}  g6 {[%clk 0:03:01]} 3. c3 {[%clk 0:02:53]}  d5 {[%clk 0:03:01]} 4. exd5 {[%clk 0:02:53]}  Qxd5 {[%clk 0:03:00]} 5. d4 {[%clk 0:02:54]}  Bg7 {[%clk 0:03:01]} 6. Nbd2 {[%clk 0:02:53]}  cxd4 {[%clk 0:02:55]} 7. Bc4 {[%clk 0:02:53]}  Qd8 {[%clk 0:02:42]} 8. Nxd4 {[%clk 0:02:29]}  Nf6 {[%clk 0:02:42]} 9. N2f3 {[%clk 0:02:28]}  O-O {[%clk 0:02:42]} 10. O-O {[%clk 0:02:28]}  a6 {[%clk 0:02:41]} 11. a4 {[%clk 0:02:24]}  Qc7 {[%clk 0:02:40]} 12. Qe2 {[%clk 0:02:14]}  Nc6 {[%clk 0:02:29]} 13. Nxc6 {[%clk 0:02:12]}  Qxc6 {[%clk 0:02:30]} 14. Ne5 {[%clk 0:02:07]}  Qc7 {[%clk 0:02:26]} 15. Re1 {[%clk 0:02:02]}  Nd7 {[%clk 0:02:05]} 16. Nxf7 {[%clk 0:01:44]}  Rxf7 {[%clk 0:01:47]} 17. Bxf7+ {[%clk 0:01:37]}  Kxf7 {[%clk 0:01:48]} 18. Qe6+ {[%clk 0:01:34]}  Kf8 {[%clk 0:01:46]} 19. Qxe7+ {[%clk 0:01:32]}  Kg8 {[%clk 0:01:46]} 20. Qe6+ {[%clk 0:01:26]}  Kh8 {[%clk 0:01:42]} 21. Qf7 {[%clk 0:01:10]}  Qd6 {[%clk 0:01:27]} 22. Bf4 {[%clk 0:00:37]} 1-0


[Site "https://www.chess.com"]

[Event "Titled Tuesday Blitz February 07 Late 2023"]
[White "Mindhunter247"]
[Black "Cuenca Jimenez, Jose Fernando"]
[BlackFideId "2255570"]
[WhiteElo "2378"]
[BlackElo "2535"]
[Result "0-1"]
[Round "01"]
[TimeControl "180+2"]
[Date "2023.02.07"]
[WhiteClock "0:00:07"]
[BlackClock "0:00:15"]

1. e4 {[%clk 0:02:59]}  c5 {[%clk 0:02:16]} 2. Nf3 {[%clk 0:02:56]}  Nc6 {[%clk 0:02:08]} 3. c3 {[%clk 0:02:56]}  Nf6 {[%clk 0:02:08]} 4. e5 {[%clk 0:02:56]}  Nd5 {[%clk 0:02:07]} 5. d4 {[%clk 0:02:56]}  cxd4 {[%clk 0:02:07]} 6. cxd4 {[%clk 0:02:57]}  d6 {[%clk 0:02:07]} 7. Bc4 {[%clk 0:02:58]}  dxe5 {[%clk 0:02:06]} 8. Nxe5 {[%clk 0:02:55]}  e6 {[%clk 0:01:13]} 9. O-O {[%clk 0:02:53]}  Be7 {[%clk 0:01:11]} 10. Qg4 {[%clk 0:02:33]}  Bf6 {[%clk 0:01:03]} 11. Re1 {[%clk 0:02:31]}  O-O {[%clk 0:01:02]} 12. Nc3 {[%clk 0:02:05]}  Nce7 {[%clk 0:01:00]} 13. Ne4 {[%clk 0:01:59]}  Bxe5 {[%clk 0:00:56]} 14. dxe5 {[%clk 0:01:57]}  Ng6 {[%clk 0:00:53]} 15. Ng3 {[%clk 0:01:51]}  Qh4 {[%clk 0:00:48]} 16. Qxh4 {[%clk 0:01:46]}  Nxh4 {[%clk 0:00:49]} 17. Bd2 {[%clk 0:01:41]}  Bd7 {[%clk 0:00:49]} 18. Rac1 {[%clk 0:01:37]}  Bc6 {[%clk 0:00:49]} 19. f3 {[%clk 0:01:36]}  Ng6 {[%clk 0:00:47]} 20. b4 {[%clk 0:01:30]}  a6 {[%clk 0:00:46]} 21. Bb3 {[%clk 0:01:22]}  Rac8 {[%clk 0:00:44]} 22. Kf2 {[%clk 0:01:13]}  Ndf4 {[%clk 0:00:44]} 23. Rc3 {[%clk 0:01:00]}  Rfd8 {[%clk 0:00:41]} 24. Bxf4 {[%clk 0:00:56]}  Nxf4 {[%clk 0:00:40]} 25. Rd1 {[%clk 0:00:46]}  Rxd1 {[%clk 0:00:38]} 26. Bxd1 {[%clk 0:00:45]}  Bd7 {[%clk 0:00:37]} 27. Rxc8+ {[%clk 0:00:43]}  Bxc8 {[%clk 0:00:38]} 28. Bc2 {[%clk 0:00:42]}  Nd5 {[%clk 0:00:35]} 29. a3 {[%clk 0:00:39]}  h6 {[%clk 0:00:34]} 30. Be4 {[%clk 0:00:38]}  Nc3 {[%clk 0:00:32]} 31. Ke3 {[%clk 0:00:36]}  Kf8 {[%clk 0:00:31]} 32. Ne2 {[%clk 0:00:35]}  Nb5 {[%clk 0:00:27]} 33. a4 {[%clk 0:00:33]}  Nc7 {[%clk 0:00:28]} 34. Kd4 {[%clk 0:00:31]}  b6 {[%clk 0:00:28]} 35. a5 {[%clk 0:00:29]}  bxa5 {[%clk 0:00:27]} 36. bxa5 {[%clk 0:00:30]}  f5 {[%clk 0:00:24]} 37. exf6 {[%clk 0:00:29]}  gxf6 {[%clk 0:00:24]} 38. Kc5 {[%clk 0:00:28]}  Ke7 {[%clk 0:00:24]} 39. Kb6 {[%clk 0:00:22]}  Kd6 {[%clk 0:00:21]} 40. Bd3 {[%clk 0:00:18]}  Nd5+ {[%clk 0:00:19]} 41. Ka7 {[%clk 0:00:18]}  Nb4 {[%clk 0:00:19]} 42. Bc4 {[%clk 0:00:16]}  Kc5 {[%clk 0:00:19]} 43. Bb3 {[%clk 0:00:15]}  Nc6+ {[%clk 0:00:19]} 44. Ka8 {[%clk 0:00:14]}  Nxa5 {[%clk 0:00:19]} 45. Ba2 {[%clk 0:00:13]}  Kb6 {[%clk 0:00:18]} 46. Nd4 {[%clk 0:00:09]}  e5 {[%clk 0:00:18]} 47. Kb8 {[%clk 0:00:06]}  exd4 {[%clk 0:00:15]} 48. Kxc8 {[%clk 0:00:06]}  d3 {[%clk 0:00:16]} 49. Bb1 {[%clk 0:00:06]}  d2 {[%clk 0:00:15]} 50. Bc2 {[%clk 0:00:07]}  Nc4 {[%clk 0:00:15]} 51. Bd1 {[%clk 0:00:07]}  Ne3 {[%clk 0:00:15]} 0-1


[Site "https://www.chess.com"]

[Event "Titled Tuesday Blitz February 07 Late 2023"]
[White "Preotu, Razvan"]
[Black "Battlecruiser_Operational"]
[WhiteFideId "2613280"]
[WhiteElo "2475"]
[BlackElo "2371"]
[Result "0-1"]
[Round "01"]
[TimeControl "180+2"]
[Date "2023.02.07"]
[WhiteClock "0:00:02"]
[BlackClock "0:00:15"]

1. e4 {[%clk 0:03:00]}  c6 {[%clk 0:02:51]} 2. Nc3 {[%clk 0:03:00]}  d5 {[%clk 0:02:48]} 3. Nf3 {[%clk 0:03:01]}  Qa5 {[%clk 0:02:43]} 4. exd5 {[%clk 0:02:33]}  cxd5 {[%clk 0:02:38]} 5. d4 {[%clk 0:02:34]}  Nf6 {[%clk 0:02:36]} 6. Bd3 {[%clk 0:02:32]}  Nc6 {[%clk 0:02:34]} 7. O-O {[%clk 0:02:32]}  Bg4 {[%clk 0:02:33]} 8. Be3 {[%clk 0:02:31]}  e6 {[%clk 0:02:32]} 9. h3 {[%clk 0:02:29]}  Bh5 {[%clk 0:02:31]} 10. g4 {[%clk 0:02:28]}  Bg6 {[%clk 0:02:30]} 11. Ne2 {[%clk 0:02:28]}  Bd6 {[%clk 0:02:08]} 12. Nf4 {[%clk 0:02:25]}  Qc7 {[%clk 0:01:50]} 13. Nxg6 {[%clk 0:02:19]}  hxg6 {[%clk 0:01:51]} 14. Kg2 {[%clk 0:02:19]}  a6 {[%clk 0:01:33]} 15. c3 {[%clk 0:02:18]}  O-O {[%clk 0:01:22]} 16. Ng5 {[%clk 0:01:55]}  e5 {[%clk 0:01:17]} 17. dxe5 {[%clk 0:01:56]}  Nxe5 {[%clk 0:01:17]} 18. Bd4 {[%clk 0:01:22]}  Rfe8 {[%clk 0:01:13]} 19. Be2 {[%clk 0:01:10]}  Re7 {[%clk 0:01:06]} 20. Nf3 {[%clk 0:00:46]}  Nc4 {[%clk 0:00:54]} 21. b3 {[%clk 0:00:40]}  Na3 {[%clk 0:00:45]} 22. Qd3 {[%clk 0:00:26]}  Ne4 {[%clk 0:00:36]} 23. c4 {[%clk 0:00:21]}  dxc4 {[%clk 0:00:32]} 24. bxc4 {[%clk 0:00:22]}  Nc5 {[%clk 0:00:22]} 25. Qd1 {[%clk 0:00:08]}  Rae8 {[%clk 0:00:21]} 26. Re1 {[%clk 0:00:08]}  Qc6 {[%clk 0:00:21]} 27. Kg1 {[%clk 0:00:05]}  Ne4 {[%clk 0:00:20]} 28. Rc1 {[%clk 0:00:03]}  Bb4 {[%clk 0:00:21]} 29. Rf1 {[%clk 0:00:02]}  b6 {[%clk 0:00:21]} 30. Ne5 {[%clk 0:00:02]}  Rxe5 {[%clk 0:00:20]} 31. Bxe5 {[%clk 0:00:03]}  Rxe5 {[%clk 0:00:21]} 32. Bf3 {[%clk 0:00:04]}  Qe8 {[%clk 0:00:20]} 33. Bxe4 {[%clk 0:00:03]}  Rxe4 {[%clk 0:00:20]} 34. Qb3 {[%clk 0:00:04]}  Bc5 {[%clk 0:00:20]} 35. Rcd1 {[%clk 0:00:04]}  a5 {[%clk 0:00:20]} 36. Rd5 {[%clk 0:00:02]}  Nxc4 {[%clk 0:00:20]} 37. Qd3 {[%clk 0:00:03]}  Kh7 {[%clk 0:00:18]} 38. Rd8 {[%clk 0:00:03]}  Qe6 {[%clk 0:00:18]} 39. Ra8 {[%clk 0:00:02]}  b5 {[%clk 0:00:17]} 40. Qd8 {[%clk 0:00:02]}  g5 {[%clk 0:00:15]} 0-1


[Site "https://www.chess.com"]

[Event "Titled Tuesday Blitz February 07 Late 2023"]
[White "Wieczorek, Oskar"]
[Black "Lucassen, Mickey"]
[WhiteFideId "1133950"]
[BlackFideId "12919110"]
[WhiteElo "2512"]
[BlackElo "2023"]
[Result "1-0"]
[Round "01"]
[TimeControl "180+2"]
[Date "2023.02.07"]
[WhiteClock "0:00:39"]
[BlackClock "0:00:03"]

1. e4 {[%clk 0:03:00]}  d6 {[%clk 0:02:54]} 2. d4 {[%clk 0:03:01]}  Nf6 {[%clk 0:02:54]} 3. f3 {[%clk 0:02:57]}  c6 {[%clk 0:02:52]} 4. c4 {[%clk 0:02:56]}  Nbd7 {[%clk 0:02:51]} 5. Nc3 {[%clk 0:02:56]}  e5 {[%clk 0:02:51]} 6. Nge2 {[%clk 0:02:56]}  Be7 {[%clk 0:02:51]} 7. Be3 {[%clk 0:02:56]}  O-O {[%clk 0:02:51]} 8. Qd2 {[%clk 0:02:56]}  a6 {[%clk 0:02:51]} 9. a4 {[%clk 0:02:57]}  Re8 {[%clk 0:02:49]} 10. g4 {[%clk 0:02:57]}  Qc7 {[%clk 0:02:48]} 11. d5 {[%clk 0:02:51]}  Nc5 {[%clk 0:02:45]} 12. Rb1 {[%clk 0:02:26]}  a5 {[%clk 0:02:41]} 13. Ng3 {[%clk 0:02:25]}  g6 {[%clk 0:02:36]} 14. g5 {[%clk 0:02:23]}  Nfd7 {[%clk 0:02:35]} 15. h4 {[%clk 0:02:23]}  Bf8 {[%clk 0:02:28]} 16. h5 {[%clk 0:02:22]}  Bg7 {[%clk 0:02:27]} 17. hxg6 {[%clk 0:02:21]}  hxg6 {[%clk 0:02:28]} 18. Qh2 {[%clk 0:02:08]}  Nb3 {[%clk 0:02:15]} 19. Be2 {[%clk 0:02:04]}  Nd4 {[%clk 0:02:14]} 20. Kf2 {[%clk 0:02:04]}  Nc2 {[%clk 0:02:07]} 21. Nd1 {[%clk 0:01:54]}  cxd5 {[%clk 0:01:53]} 22. cxd5 {[%clk 0:01:45]}  Nxe3 {[%clk 0:01:40]} 23. Nxe3 {[%clk 0:01:46]}  Qb6 {[%clk 0:01:39]} 24. Bb5 {[%clk 0:01:46]}  Rd8 {[%clk 0:01:26]} 25. Qh7+ {[%clk 0:01:43]}  Kf8 {[%clk 0:01:26]} 26. Ke2 {[%clk 0:01:34]}  Nc5 {[%clk 0:01:24]} 27. b3 {[%clk 0:01:00]}  Bd7 {[%clk 0:00:53]} 28. Bxd7 {[%clk 0:00:52]}  Rxd7 {[%clk 0:00:47]} 29. Ngf5 {[%clk 0:00:45]}  gxf5 {[%clk 0:00:37]} 30. Nxf5 {[%clk 0:00:46]}  Qa6+ {[%clk 0:00:21]} 31. Kf2 {[%clk 0:00:46]}  Nd3+ {[%clk 0:00:20]} 32. Kg3 {[%clk 0:00:46]}  f6 {[%clk 0:00:09]} 33. g6 {[%clk 0:00:39]}  Rc7 {[%clk 0:00:05]} 34. Qh8+ {[%clk 0:00:38]}  Bxh8 {[%clk 0:00:03]} 35. Rxh8# {[%clk 0:00:39]} 1-0


[Site "https://www.chess.com"]

[Event "Titled Tuesday Blitz February 07 Late 2023"]
[White "Rizzo, Tobias"]
[Black "Dourerassou, Jonathan"]
[WhiteFideId "30942691"]
[BlackFideId "628050"]
[WhiteElo "1867"]
[BlackElo "2414"]
[Result "0-1"]
[Round "01"]
[TimeControl "180+2"]
[Date "2023.02.07"]
[WhiteClock "0:00:16"]
[BlackClock "0:01:24"]

1. e4 {[%clk 0:02:58]}  c5 {[%clk 0:02:58]} 2. Nc3 {[%clk 0:02:58]}  Nc6 {[%clk 0:02:57]} 3. g3 {[%clk 0:02:58]}  g6 {[%clk 0:02:58]} 4. Bg2 {[%clk 0:02:58]}  Bg7 {[%clk 0:02:58]} 5. d3 {[%clk 0:02:57]}  d6 {[%clk 0:02:59]} 6. f4 {[%clk 0:02:57]}  e5 {[%clk 0:02:58]} 7. Nf3 {[%clk 0:02:56]}  Nge7 {[%clk 0:02:58]} 8. O-O {[%clk 0:02:55]}  O-O {[%clk 0:02:58]} 9. h3 {[%clk 0:02:55]}  Nd4 {[%clk 0:02:58]} 10. a4 {[%clk 0:02:54]}  Be6 {[%clk 0:02:56]} 11. g4 {[%clk 0:02:45]}  exf4 {[%clk 0:02:52]} 12. Bxf4 {[%clk 0:02:43]}  d5 {[%clk 0:02:51]} 13. exd5 {[%clk 0:02:33]}  Nxd5 {[%clk 0:02:52]} 14. Nxd5 {[%clk 0:02:33]}  Bxd5 {[%clk 0:02:50]} 15. c3 {[%clk 0:02:33]}  Bb3 {[%clk 0:02:44]} 16. Qd2 {[%clk 0:02:22]}  Nxf3+ {[%clk 0:02:44]} 17. Bxf3 {[%clk 0:02:09]}  Bd5 {[%clk 0:02:45]} 18. Be3 {[%clk 0:01:29]}  Bxf3 {[%clk 0:02:42]} 19. Rxf3 {[%clk 0:01:30]}  Qd5 {[%clk 0:02:42]} 20. Raf1 {[%clk 0:01:29]}  Rad8 {[%clk 0:02:42]} 21. Bg5 {[%clk 0:01:23]}  Rd7 {[%clk 0:02:42]} 22. Bh6 {[%clk 0:01:06]}  Re8 {[%clk 0:02:37]} 23. Bxg7 {[%clk 0:01:06]}  Kxg7 {[%clk 0:02:38]} 24. Qf4 {[%clk 0:01:06]}  Qe5 {[%clk 0:02:30]} 25. Qc4 {[%clk 0:01:01]}  Re6 {[%clk 0:02:25]} 26. Kg2 {[%clk 0:00:57]}  h5 {[%clk 0:02:14]} 27. R1f2 {[%clk 0:00:52]}  hxg4 {[%clk 0:02:09]} 28. hxg4 {[%clk 0:00:53]}  b6 {[%clk 0:02:10]} 29. a5 {[%clk 0:00:50]}  Ree7 {[%clk 0:02:00]} 30. a6 {[%clk 0:00:48]}  Qg5 {[%clk 0:01:59]} 31. Kg3 {[%clk 0:00:44]}  Qe5+ {[%clk 0:01:53]} 32. Kg2 {[%clk 0:00:44]}  Qg5 {[%clk 0:01:46]} 33. Kh3 {[%clk 0:00:36]}  Re3 {[%clk 0:01:39]} 34. Kg2 {[%clk 0:00:25]}  Rxf3 {[%clk 0:01:38]} 35. Rxf3 {[%clk 0:00:26]}  Re7 {[%clk 0:01:36]} 36. d4 {[%clk 0:00:22]}  Qxg4+ {[%clk 0:01:35]} 37. Kf2 {[%clk 0:00:20]}  Qh4+ {[%clk 0:01:33]} 38. Kg2 {[%clk 0:00:21]}  Qg5+ {[%clk 0:01:32]} 39. Kf2 {[%clk 0:00:19]}  Qd2+ {[%clk 0:01:31]} 40. Kg3 {[%clk 0:00:20]}  Qe1+ {[%clk 0:01:31]} 41. Kg2 {[%clk 0:00:15]}  Re2+ {[%clk 0:01:30]} 42. Kh3 {[%clk 0:00:15]}  Qh1+ {[%clk 0:01:29]} 43. Kg4 {[%clk 0:00:16]}  Qh5+ {[%clk 0:01:27]} 44. Kf4 {[%clk 0:00:16]}  Qh4# {[%clk 0:01:24]} 0-1


[Site "https://www.chess.com"]